bitfinex/quotes_BTCUSD_20250215
["timestamp","ask_amount","ask_price","bid_price","bid_amount"]
[1739578938161,0.313964,97425.0,97424.0,0.00022365]
[1739578938520,0.52348877,97425.0,97424.0,0.00027262]
[1739578938933,0.92648877,97425.0,97424.0,3.42e-06]
[1739578939696,0.9748929,97425.0,97424.0,3.42e-06]
[1739578940094,0.98257879,97425.0,97424.0,3.42e-06]
[1739578940553,0.98578681,97425.0,97424.0,3.42e-06]
[1739578940786,0.98778681,97425.0,97424.0,0.00100342]
[1739578941063,0.98778681,97425.0,97424.0,4.2e-07]
[1739578941281,0.421977,97417.0,97400.0,0.00022365]
[1739578941433,0.52448065,97417.0,97416.0,0.00065768]
[1739578941647,0.55650177,97417.0,97416.0,0.00065768]
[1739578941871,0.52448065,97417.0,97416.0,0.00065768]
[1739578942403,0.51448065,97417.0,97416.0,0.00065768]
[1739578942576,0.51648065,97417.0,97416.0,0.00065768]
[1739578943140,0.56488478,97417.0,97416.0,0.00065768]
[1739578943348,0.54957067,97417.0,97416.0,0.00065768]
[1739578944166,0.55277869,97417.0,97416.0,0.00065768]
[1739578944704,0.54277869,97417.0,97416.0,0.00065768]
[1739578944926,0.55277869,97417.0,97416.0,0.00065768]
[1739578948397,0.59672441,97417.0,97416.0,0.00065768]
[1739578948998,0.60672441,97417.0,97416.0,0.00065768]
[1739578949199,0.70845625,97417.0,97416.0,0.00065768]
[1739578949442,0.93092441,97417.0,97416.0,0.00065768]
[1739578949994,0.92892441,97417.0,97416.0,0.00065768]
[1739578950541,0.93092441,97417.0,97416.0,0.00065768]
[1739578950943,0.92892441,97417.0,97416.0,0.00065768]
[1739578951197,0.93092441,97417.0,97416.0,0.00165768]
[1739578952267,0.89792441,97417.0,97416.0,0.00165768]
[1739578955019,0.31777869,97417.0,97416.0,0.00165768]
[1739578956348,0.46577869,97417.0,97416.0,0.00065768]
[1739578956853,0.46877869,97417.0,97416.0,0.00065768]
[1739578957392,0.46577869,97417.0,97416.0,0.00065768]
[1739578957598,0.46877869,97417.0,97416.0,0.00065768]
[1739578958559,0.06229804,97417.0,97416.0,0.08335768]
[1739578958906,0.06229804,97417.0,97416.0,0.28643568]
[1739578959670,0.05929804,97417.0,97416.0,0.28643568]
[1739578959873,0.05161215,97417.0,97416.0,0.28643568]
[1739578960067,0.05161215,97417.0,97416.0,0.28843568]
[1739578960301,0.05161215,97417.0,97416.0,0.28743568]
[1739578960469,0.00320802,97417.0,97416.0,0.28943568]
[1739578960677,0.15418966,97424.0,97417.0,0.153976]
[1739578960877,0.00022366,97424.0,97419.0,0.0491]
[1739578961085,0.00022366,97424.0,97423.0,0.283467]
[1739578963461,0.00022366,97424.0,97423.0,0.287467]
[1739578963681,0.00022366,97424.0,97423.0,0.291467]
[1739578964786,0.00022366,97424.0,97423.0,0.39347065]
[1739578965873,0.00022366,97424.0,97423.0,0.38547065]
[1739578966074,0.00022366,97424.0,97423.0,0.39947065]
[1739578968008,0.00022366,97424.0,97423.0,0.39883811]
[1739578968453,0.00022366,97424.0,97423.0,0.39383811]
[1739578970295,0.00022366,97424.0,97423.0,0.93393811]
[1739578971050,0.00022366,97424.0,97423.0,0.29133446]
[1739578972399,0.00022366,97424.0,97423.0,0.1435]
[1739578972950,0.15418966,97424.0,97423.0,0.014]
[1739578973321,0.00022366,97424.0,97416.0,0.00065768]
[1739578973530,0.153977,97417.0,97416.0,0.00065768]
[1739578975836,0.153977,97417.0,97416.0,0.00465768]
[1739578976044,0.153977,97417.0,97416.0,0.00265768]
[1739578976241,0.17198503,97417.0,97416.0,0.00265768]
[1739578976500,0.17198503,97417.0,97416.0,0.00565768]
[1739578978036,0.17198503,97417.0,97416.0,0.00365768]
[1739578978037,0.58219815,97417.0,97416.0,0.00365768]
[1739578978218,0.56048675,97417.0,97416.0,0.00565768]
[1739578978420,0.572689,97417.0,97416.0,0.00565768]
[1739578978970,0.572689,97417.0,97416.0,0.00065768]
[1739578979109,0.62187242,97417.0,97416.0,0.00165768]
[1739578979305,0.62187242,97417.0,97416.0,0.00365768]
[1739578979505,0.62187242,97417.0,97416.0,0.00165768]
[1739578979830,0.62287242,97417.0,97416.0,0.00165768]
[1739578980040,0.62608141,97417.0,97416.0,0.00065768]
[1739578981367,0.62708141,97417.0,97416.0,0.00065768]
[1739578984041,0.49108334,97417.0,97416.0,0.00065768]
[1739578986046,0.47070916,97417.0,97416.0,0.00065768]
[1739578986647,0.4630674,97417.0,97416.0,0.00065768]
[1739578987007,0.05658675,97417.0,97416.0,0.15463568]
[1739578987413,0.05202626,97417.0,97416.0,0.23183568]
[1739578987628,0.05102626,97417.0,97416.0,0.23183568]
[1739578987830,0.05002626,97417.0,97416.0,0.23183568]
[1739578988056,0.05102626,97417.0,97416.0,0.27773568]
[1739578988681,0.05002626,97417.0,97416.0,0.27773568]
[1739578988903,0.00022366,97431.0,97416.0,0.27773568]
[1739578988904,0.00022366,97431.0,97416.0,0.12475768]
[1739578989109,0.00022366,97431.0,97423.0,0.153967]
[1739578990375,0.00022366,97431.0,97423.0,0.15499335]
[1739578990598,0.00022366,97431.0,97423.0,0.15499325]
[1739578991463,0.00022366,97431.0,97423.0,0.16299325]
[1739578993606,0.00022366,97431.0,97423.0,0.8840969]
[1739578993918,0.00022366,97431.0,97423.0,0.95387065]
[1739578994738,0.00022366,97431.0,97423.0,0.94587065]
[1739578994924,0.00022366,97431.0,97423.0,0.95987065]
[1739578995669,0.00022366,97431.0,97423.0,0.93687065]
[1739578995876,0.00022366,97431.0,97423.0,0.834367]
[1739578996095,0.00022366,97431.0,97423.0,0.5541]
[1739578996519,0.15396,97428.0,97423.0,0.5541]
[1739578996720,0.00557844,97424.0,97423.0,0.5541]
[1739578996876,0.00022366,97424.0,97423.0,0.708067]
[1739578997073,0.00022366,97424.0,97423.0,0.701067]
[1739578997302,0.00022366,97424.0,97423.0,0.694067]
[1739578997504,0.00022366,97424.0,97423.0,0.707067]
[1739578999925,0.00022366,97424.0,97423.0,0.166967]
[1739579001874,0.00022366,97424.0,97423.0,0.1670735]
[1739579002706,0.40669331,97424.0,97423.0,0.0131065]
[1739579003165,0.41204771,97424.0,97423.0,0.0131065]
[1739579003374,0.30954406,97424.0,97423.0,0.0131065]
[1739579003583,0.30954406,97424.0,97423.0,0.0061065]
[1739579003783,0.30954406,97424.0,97423.0,0.0071065]
[1739579004121,0.30954406,97424.0,97423.0,0.0091065]
[1739579004318,0.41204771,97424.0,97423.0,0.0001065]
[1739579004764,0.49533145,97424.0,97423.0,5e-07]
[1739579005072,0.51407634,97424.0,97423.0,5e-07]
[1739579006534,0.51307634,97424.0,97423.0,5e-07]
[1739579006762,0.51507634,97424.0,97423.0,5e-07]
[1739579006963,0.54390626,97424.0,97423.0,5e-07]
[1739579007193,0.313978,97416.0,97415.0,4e-08]
[1739579007390,0.54788165,97416.0,97415.0,4e-08]
[1739579007609,0.55360687,97416.0,97415.0,4e-08]
[1739579008226,0.57660687,97416.0,97415.0,4e-08]
[1739579008415,0.57760687,97416.0,97415.0,4e-08]
[1739579008750,0.62446542,97416.0,97415.0,4e-08]
[1739579009151,0.62546542,97416.0,97415.0,4e-08]
[1739579009869,0.62446542,97416.0,97415.0,4e-08]
[1739579010233,0.74110448,97416.0,97415.0,0.00100004]
[1739579010559,0.63310448,97416.0,97415.0,0.00200004]
[1739579010769,0.63210448,97416.0,97415.0,0.00100004]
[1739579010983,0.63210448,97416.0,97415.0,0.00200004]
[1739579010984,0.31970448,97416.0,97415.0,0.00200004]
[1739579011192,0.21720083,97416.0,97415.0,0.00200004]
[1739579011543,0.20956177,97416.0,97415.0,0.00200004]
[1739579011747,0.17873185,97416.0,97415.0,0.00100004]
[1739579011925,0.17873185,97416.0,97415.0,4e-08]
[1739579011926,0.17773185,97416.0,97415.0,4e-08]
[1739579012140,0.17773185,97416.0,97415.0,0.00300004]
[1739579013212,0.17773185,97416.0,97415.0,0.00600004]
[1739579013545,0.17773185,97416.0,97415.0,0.00300004]
[1739579013968,0.15970322,97416.0,97415.0,0.00300004]
[1739579014364,0.15970322,97416.0,97415.0,0.00600004]
[1739579016876,0.00572522,97416.0,97415.0,0.15998004]
[1739579017458,0.15634509,97432.0,97416.0,0.153977]
[1739579017666,0.153959,97429.0,97415.0,0.0070265]
[1739579017876,0.00634509,97432.0,97423.0,0.153967]
[1739579018085,0.00467134,97423.0,97415.0,0.00600004]
[1739579018292,0.153962,97427.0,97422.0,0.153969]
[1739579018709,0.17198596,97428.0,97420.0,0.205295]
[1739579018914,0.17198596,97428.0,97423.0,0.153967]
[1739579019262,0.17198596,97428.0,97420.0,0.205295]
[1739579019263,0.01802696,97428.0,97420.0,0.205295]
[1739579019461,0.153962,97427.0,97421.0,0.15397]
[1739579019876,0.153962,97427.0,97420.0,0.205295]
[1739579020076,0.17198696,97428.0,97422.0,0.153968]
[1739579020280,0.153961,97427.0,97422.0,0.153968]
[1739579020480,0.00467134,97423.0,97422.0,0.153968]
[1739579020681,0.00467134,97423.0,97421.0,0.15397]
[1739579020954,0.00467134,97423.0,97421.0,0.001]
[1739579021517,0.00467134,97423.0,97422.0,0.001]
[1739579021756,0.00467134,97423.0,97421.0,0.001]
[1739579022289,0.00467134,97423.0,97421.0,0.002]
[1739579022711,0.00467134,97423.0,97422.0,0.154969]
[1739579023067,0.0006571,97424.0,97422.0,0.001]
[1739579023273,0.0006571,97424.0,97415.0,4e-08]
[1739579023274,0.1586383,97423.0,97418.0,0.153974]
[1739579023486,0.1586383,97423.0,97421.0,0.001]
[1739579023670,0.0046713,97423.0,97422.0,0.001]
[1739579023873,0.0046713,97423.0,97421.0,0.001]
[1739579024077,0.0046713,97423.0,97419.0,0.153973]
[1739579024318,0.0046713,97423.0,97422.0,0.001]
[1739579024871,0.0046713,97423.0,97422.0,0.154969]
[1739579025078,0.0046713,97423.0,97422.0,0.155969]
[1739579025453,0.0006571,97424.0,97423.0,0.153967]
[1739579026802,0.0006571,97424.0,97423.0,0.154967]
[1739579027189,0.0006571,97424.0,97423.0,0.001]
[1739579027388,0.0006571,97424.0,97417.0,0.202075]
[1739579027568,0.00532845,97424.0,97418.0,0.153974]
[1739579027766,0.0006571,97424.0,97423.0,0.004]
[1739579028170,0.1546231,97424.0,97423.0,0.004]
[1739579029198,0.25712675,97424.0,97423.0,0.004]
[1739579029418,0.25712675,97424.0,97423.0,0.008]
[1739579029753,0.27517267,97424.0,97423.0,0.004]
[1739579030484,0.153978,97416.0,97415.0,4e-08]
[1739579031292,0.17202392,97416.0,97415.0,4e-08]
[1739579031901,0.17202392,97416.0,97415.0,0.00100004]
[1739579034006,0.1752322,97416.0,97415.0,0.00100004]
[1739579035360,0.27773585,97416.0,97415.0,0.00100004]
[1739579035562,0.27452757,97416.0,97415.0,0.00100004]
[1739579035721,0.30809345,97416.0,97415.0,0.00100004]
[1739579036098,0.31575058,97416.0,97415.0,0.00100004]
[1739579037222,0.31575058,97416.0,97415.0,4e-08]
[1739579037421,0.30809345,97416.0,97415.0,4e-08]
[1739579037643,0.30809345,97416.0,97415.0,0.00100004]
[1739579040026,0.2055898,97416.0,97415.0,0.00100004]
[1739579044099,0.21326093,97416.0,97415.0,0.00100004]
[1739579044435,0.2164693,97416.0,97415.0,0.00100004]
[1739579050313,0.21669296,97416.0,97415.0,0.00100004]
[1739579057304,0.31919661,97416.0,97415.0,0.00100004]
[1739579062319,0.31598824,97416.0,97415.0,0.00100004]
[1739579062541,0.30831711,97416.0,97415.0,0.00100004]
[1739579063150,0.28714232,97416.0,97415.0,0.00100004]
[1739579064498,0.2794456,97416.0,97415.0,0.00100004]
[1739579071461,0.30847236,97416.0,97415.0,0.00100004]
[1739579072564,0.31616991,97416.0,97415.0,0.00100004]
[1739579075220,0.28714315,97416.0,97415.0,0.00100004]
[1739579076431,0.2794456,97416.0,97415.0,0.00100004]
[1739579079265,0.28714293,97416.0,97415.0,0.00100004]
[1739579079855,0.31616931,97416.0,97415.0,0.00100004]
[1739579090610,0.31616931,97416.0,97415.0,0.20388004]
[1739579090611,0.05499329,97416.0,97415.0,0.20388004]
[1739579091360,0.05499329,97416.0,97415.0,0.20288004]
[1739579091712,0.05499329,97416.0,97415.0,0.21188004]
[1739579092059,0.05499329,97416.0,97415.0,0.20788004]
[1739579092259,0.04729596,97416.0,97415.0,0.20688004]
[1739579092633,0.04729596,97416.0,97415.0,0.21188004]
[1739579092841,0.01826958,97416.0,97415.0,0.21188004]
[1739579093896,0.00635159,97416.0,97415.0,0.28938004]
[1739579094899,0.00635159,97416.0,97415.0,0.28438004]
[1739579095069,0.00635159,97416.0,97415.0,0.28738004]
[1739579095273,0.00635159,97416.0,97415.0,0.29338004]
[1739579095722,0.00022366,97416.0,97415.0,0.29338004]
[1739579100037,0.00022366,97416.0,97415.0,0.39588369]
[1739579100852,0.00022366,97416.0,97415.0,0.38888369]
[1739579101236,0.00022366,97416.0,97415.0,0.38988369]
[1739579101448,0.00022366,97416.0,97415.0,0.39688369]
[1739579103044,6.6e-07,97416.0,97415.0,1.12918369]
[1739579103246,7.6e-07,97424.0,97423.0,0.313967]
[1739579103521,0.00022366,97431.0,97430.0,0.452956]
[1739579103644,0.00022366,97431.0,97430.0,0.55545965]
[1739579104257,0.00022366,97431.0,97430.0,0.53245965]
[1739579105123,0.00022366,97431.0,97430.0,0.53945965]
[1739579105332,0.00022366,97431.0,97430.0,0.5564979]
[1739579106340,0.00022366,97431.0,97430.0,0.4064979]
[1739579106541,0.00022366,97431.0,97430.0,0.293956]
[1739579107822,0.00022366,97431.0,97430.0,0.216456]
[1739579110919,0.48818231,97431.0,97430.0,0.014]
[1739579111071,0.49139018,97431.0,97430.0,0.014]
[1739579111279,0.53738517,97431.0,97430.0,0.014]
[1739579111492,0.349178,97416.0,97415.0,4e-08]
[1739579111702,0.53318165,97416.0,97415.0,4.335e-05]
[1739579112562,0.5996649,97416.0,97415.0,4.335e-05]
[1739579112745,0.60287277,97416.0,97415.0,4.335e-05]
[1739579113390,0.60287277,97416.0,97415.0,0.00304335]
[1739579113813,0.60287277,97416.0,97415.0,4.335e-05]
[1739579113947,0.60287277,97416.0,97415.0,0.00204335]
[1739579114150,0.60287277,97416.0,97415.0,4.335e-05]
[1739579114561,0.62341537,97416.0,97415.0,0.00104335]
[1739579114760,0.62341537,97416.0,97415.0,0.00204335]
[1739579115198,0.62541537,97416.0,97415.0,0.00204335]
[1739579116336,0.6125873,97416.0,97415.0,4.335e-05]
[1739579116743,0.6135873,97416.0,97415.0,4.335e-05]
[1739579117093,0.6125873,97416.0,97415.0,4.335e-05]
[1739579117292,0.6105873,97416.0,97415.0,4.335e-05]
[1739579117681,0.6125873,97416.0,97415.0,4.335e-05]
[1739579118388,0.6115873,97416.0,97415.0,4.335e-05]
[1739579119243,0.6105873,97416.0,97415.0,4.335e-05]
[1739579119595,0.6125873,97416.0,97415.0,4.335e-05]
[1739579120223,0.5673873,97416.0,97415.0,4.335e-05]
[1739579128385,0.21284105,97416.0,97415.0,4.335e-05]
[1739579128651,0.3153447,97416.0,97415.0,4.335e-05]
[1739579129244,0.30768451,97416.0,97415.0,4.335e-05]
[1739579129584,0.27617203,97416.0,97415.0,4.335e-05]
[1739579131103,0.42617203,97416.0,97415.0,4.335e-05]
[1739579131477,0.47217203,97416.0,97415.0,4.335e-05]
[1739579131694,0.01969038,97416.0,97415.0,4.335e-05]
[1739579132052,0.0479307,97416.0,97415.0,0.15402335]
[1739579132448,0.0469307,97416.0,97415.0,0.15402335]
[1739579132854,0.0479307,97416.0,97415.0,0.15402335]
[1739579133066,0.0469307,97416.0,97415.0,0.23462335]
[1739579133254,0.001,97416.0,97415.0,0.23462335]
[1739579133587,0.00022366,97424.0,97423.0,0.153967]
[1739579134494,0.00022366,97424.0,97422.0,0.153968]
[1739579135051,0.00022366,97424.0,97423.0,0.002]
[1739579135497,0.00022366,97424.0,97423.0,0.007]
[1739579136647,0.00022366,97424.0,97423.0,0.005]
[1739579137349,0.00022366,97424.0,97423.0,0.009]
[1739579137890,0.00022366,97424.0,97423.0,0.208967]
[1739579139074,0.00022366,97424.0,97423.0,0.203967]
[1739579139570,0.00022366,97424.0,97423.0,0.206967]
[1739579139779,0.00022366,97424.0,97423.0,0.213967]
[1739579141689,0.00022366,97424.0,97423.0,0.297167]
[1739579141889,0.00022366,97424.0,97423.0,0.72457065]
[1739579148315,0.00022366,97424.0,97423.0,0.622067]
[1739579150976,0.00022366,97424.0,97423.0,0.014]
[1739579151175,0.48529331,97424.0,97423.0,0.014]
[1739579152007,0.48529331,97424.0,97423.0,0.007]
[1739579152217,0.53123696,97424.0,97423.0,0.007]
[1739579152870,0.53444491,97424.0,97423.0,0.007]
[1739579153238,0.38047891,97424.0,97401.0,0.3249]
[1739579153399,0.153978,97416.0,97402.0,0.154]
[1739579153619,0.153978,97416.0,97401.0,0.478902]
[1739579153817,0.153978,97416.0,97401.0,0.3249]
[1739579154022,0.153978,97416.0,97400.0,0.00022365]
[1739579154023,0.40648165,97416.0,97400.0,0.00022365]
[1739579154428,0.40648165,97416.0,97415.0,0.00104335]
[1739579155305,0.46008034,97416.0,97415.0,0.00204335]
[1739579155502,0.50518034,97416.0,97415.0,0.00204335]
[1739579156041,0.58568888,97416.0,97415.0,0.00204335]
[1739579156456,0.58568888,97416.0,97415.0,0.00104335]
[1739579156856,0.58668888,97416.0,97415.0,0.00104335]
[1739579157056,0.58668888,97416.0,97415.0,4.335e-05]
[1739579157519,0.58768888,97416.0,97415.0,4.335e-05]
[1739579157932,0.58668888,97416.0,97415.0,4.335e-05]
[1739579158129,0.60818641,97416.0,97415.0,4.335e-05]
[1739579158409,0.63118641,97416.0,97415.0,4.335e-05]
[1739579158621,0.314002,97401.0,97400.0,6.5e-07]
[1739579158826,0.53890565,97401.0,97400.0,6.5e-07]
[1739579159035,0.53890565,97401.0,97399.0,3e-07]
[1739579159036,0.15,97400.0,97399.0,3e-07]
[1739579159213,0.50680765,97400.0,97399.0,3e-07]
[1739579160367,0.337008,97397.0,97396.0,6e-07]
[1739579160568,0.43951165,97397.0,97396.0,6e-07]
[1739579161304,0.52681165,97397.0,97396.0,6e-07]
[1739579161487,0.49381165,97397.0,97396.0,6e-07]
[1739579161687,0.48581165,97397.0,97396.0,0.0010006]
[1739579161890,0.49346669,97397.0,97396.0,0.0010006]
[1739579162089,0.53941034,97397.0,97396.0,0.0010006]
[1739579163326,0.51113732,97397.0,97396.0,0.0010006]
[1739579163699,0.51413732,97397.0,97396.0,0.0020006]
[1739579167892,0.56529692,97397.0,97396.0,0.0020006]
[1739579168536,0.56552058,97397.0,97396.0,0.0020006]
[1739579168897,0.56873021,97397.0,97396.0,0.0020006]
[1739579170416,0.54573021,97397.0,97396.0,0.0020006]
[1739579170679,0.16442221,97397.0,97396.0,0.0020006]
[1739579170814,0.31843021,97397.0,97396.0,0.0020006]
[1739579171562,0.46543021,97397.0,97396.0,0.0010006]
[1739579171787,0.46743021,97397.0,97396.0,0.0010006]
[1739579171906,0.46422058,97397.0,97396.0,0.0010006]
[1739579172330,0.45656554,97397.0,97396.0,0.0010006]
[1739579172619,0.45456554,97397.0,97396.0,6e-07]
[1739579173014,0.00422366,97397.0,97396.0,6e-07]
[1739579173935,0.00222366,97397.0,97396.0,6e-07]
[1739579174107,0.00022366,97397.0,97396.0,6e-07]
[1739579174670,0.00022366,97397.0,97396.0,0.1540106]
[1739579174873,0.00022366,97397.0,97396.0,0.2831106]
[1739579176172,0.00022366,97397.0,97396.0,0.2861106]
[1739579176389,0.00022366,97397.0,97396.0,0.2891106]
[1739579177189,0.00022366,97397.0,97396.0,0.71651425]
[1739579178783,0.00022366,97397.0,97396.0,0.71351425]
[1739579178982,0.00022366,97397.0,97396.0,0.71751425]
[1739579179468,0.00022366,97397.0,97396.0,0.72751329]
[1739579179668,0.00022366,97397.0,97396.0,0.6080106]
[1739579179872,0.00022366,97397.0,97396.0,0.6220106]
[1739579183828,6.6e-07,97397.0,97396.0,1.30681425]
[1739579184444,6.6e-07,97397.0,97396.0,1.45681425]
[1739579185011,6.6e-07,97397.0,97396.0,1.44981425]
[1739579185202,6.6e-07,97397.0,97396.0,1.45681425]
[1739579185685,6.6e-07,97397.0,97396.0,1.44981425]
[1739579186086,6.6e-07,97397.0,97396.0,1.45681425]
[1739579187588,6.6e-07,97397.0,97396.0,1.44681425]
[1739579187789,6.6e-07,97397.0,97396.0,1.1713106]
[1739579188216,6.6e-07,97397.0,97396.0,1.27381425]
[1739579188411,6.6e-07,97397.0,97396.0,1.45681425]
[1739579189509,6.6e-07,97397.0,97396.0,0.8882006]
[1739579189755,6.6e-07,97397.0,97396.0,0.1680106]
[1739579190154,6.6e-07,97397.0,97396.0,0.1610106]
[1739579190416,6.6e-07,97397.0,97396.0,0.1540106]
[1739579190630,6.6e-07,97397.0,97396.0,0.1680106]
[1739579194042,6.6e-07,97397.0,97396.0,0.0140006]
[1739579194497,6.6e-07,97397.0,97396.0,0.1680106]
[1739579194853,6.6e-07,97397.0,97396.0,0.0140006]
[1739579196101,6.6e-07,97397.0,97396.0,0.1680106]
[1739579198262,6.6e-07,97397.0,97396.0,0.0140006]
[1739579198818,6.6e-07,97397.0,97396.0,0.1680106]
[1739579200727,0.01751841,97397.0,97396.0,0.1680106]
[1739579201985,0.01751841,97397.0,97396.0,0.1480106]
[1739579204627,0.01751841,97397.0,97396.0,0.1481171]
[1739579205677,0.01751841,97397.0,97396.0,0.0001065]
[1739579207843,0.17152641,97397.0,97396.0,0.0001065]
[1739579208317,0.15400866,97397.0,97396.0,0.0001065]
[1739579209014,0.15500866,97397.0,97396.0,0.0071065]
[1739579209508,0.15721733,97397.0,97396.0,0.0041065]
[1739579209988,0.15721733,97397.0,97396.0,0.0091065]
[1739579211230,0.17474304,97397.0,97396.0,0.0091065]
[1739579214324,0.17153437,97397.0,97396.0,0.0091065]
[1739579216598,0.19959957,97397.0,97396.0,0.0091065]
[1739579217640,0.20280817,97397.0,97396.0,0.0091065]
[1739579218265,0.20260817,97397.0,97396.0,0.0091065]
[1739579220374,0.21029623,97397.0,97396.0,0.0091065]
[1739579227912,0.21051989,97397.0,97396.0,0.0091065]
[1739579229606,0.46302354,97397.0,97396.0,0.0091065]
[1739579230479,0.46302354,97397.0,97396.0,0.0041065]
[1739579230636,0.46302354,97397.0,97396.0,0.0051065]
[1739579231042,0.46302354,97397.0,97396.0,0.0001065]
[1739579235089,0.21051989,97397.0,97396.0,0.0001065]
[1739579235826,0.23781579,97397.0,97396.0,0.0001065]
[1739579237255,0.21051989,97397.0,97396.0,0.0001065]
[1739579238304,0.18245469,97397.0,97396.0,0.0001065]
[1739579241349,0.02864603,97397.0,97396.0,0.0001065]
[1739579242614,0.02864603,97397.0,97396.0,0.1541165]
[1739579243907,0.01112032,97397.0,97396.0,0.2337165]
[1739579244289,0.00022366,97397.0,97396.0,0.2337165]
[1739579251407,0.00022366,97397.0,97396.0,0.1541165]
[1739579251635,0.00022366,97397.0,97396.0,0.1571165]
[1739579252068,0.00022366,97397.0,97396.0,0.1601165]
[1739579252490,0.00022366,97397.0,97396.0,0.1571165]
[1739579252689,0.00022366,97397.0,97396.0,0.1601165]
[1739579253197,0.15423166,97397.0,97396.0,0.0061065]
[1739579253809,0.15423166,97397.0,97396.0,0.0031065]
[1739579254294,0.16190694,97397.0,97396.0,0.0031065]
[1739579254729,0.16190694,97397.0,97396.0,0.0011065]
[1739579255109,0.16190694,97397.0,97396.0,0.0041065]
[1739579255664,0.16190694,97397.0,97396.0,0.0011065]
[1739579255851,0.16190694,97397.0,97396.0,0.0021065]
[1739579260116,0.41441059,97397.0,97396.0,0.0021065]
[1739579260315,0.49001059,97397.0,97396.0,0.0021065]
[1739579261164,0.49001059,97397.0,97396.0,0.0011065]
[1739579261314,0.49201059,97397.0,97396.0,0.0011065]
[1739579261893,0.49001059,97397.0,97396.0,0.0011065]
[1739579262104,0.49001059,97397.0,97396.0,0.0001065]
[1739579262348,0.49201059,97397.0,97396.0,0.0001065]
[1739579262558,0.49401059,97397.0,97396.0,0.0001065]
[1739579262960,0.51104989,97397.0,97396.0,0.0001065]
[1739579264286,0.154046,97373.0,97372.0,0.00022365]
[1739579264924,0.40654965,97373.0,97372.0,0.00022365]
[1739579265126,0.45604965,97373.0,97372.0,0.00022365]
[1739579265439,0.47408895,97373.0,97372.0,0.00622365]
[1739579265640,0.47413222,97373.0,97372.0,0.00622365]
[1739579266084,0.4818075,97373.0,97372.0,0.01122365]
[1739579266302,0.4637682,97373.0,97372.0,0.00022365]
[1739579266623,0.5393682,97373.0,97372.0,0.00122365]
[1739579266741,0.5393682,97373.0,97372.0,0.00022365]
[1739579267147,0.56117764,97373.0,97372.0,0.00022365]
[1739579267570,0.56117764,97373.0,97372.0,0.00122365]
[1739579268215,0.56117764,97373.0,97372.0,0.00022365]
[1739579268417,0.56317764,97373.0,97372.0,0.00022365]
[1739579268619,0.56217764,97373.0,97372.0,0.00022365]
[1739579268987,0.56117764,97373.0,97372.0,0.00022365]
[1739579269188,0.56617764,97373.0,97372.0,0.00122365]
[1739579269651,0.57117764,97373.0,97372.0,0.00122365]
[1739579276540,0.57109442,97373.0,97372.0,0.00122365]
[1739579276971,0.44599442,97373.0,97372.0,0.00122365]
[1739579277111,0.42518498,97373.0,97372.0,0.00122365]
[1739579278035,0.42018498,97373.0,97372.0,0.00122365]
[1739579278233,0.4065097,97373.0,97372.0,0.00022365]
[1739579278435,0.4115097,97373.0,97372.0,0.00022365]
[1739579279674,0.00504327,97373.0,97372.0,0.28127165]
[1739579279938,0.00204327,97373.0,97372.0,0.28127165]
[1739579280134,0.00204327,97373.0,97372.0,0.28227165]
[1739579281017,4.327e-05,97373.0,97372.0,0.28227165]
[1739579281876,4.327e-05,97373.0,97372.0,0.28627165]
[1739579282216,4.327e-05,97373.0,97372.0,0.28527165]
[1739579282859,0.00104327,97373.0,97372.0,0.29227165]
[1739579283061,0.00104327,97373.0,97372.0,0.28827165]
[1739579283234,0.00104327,97373.0,97372.0,0.29849211]
[1739579283437,0.00204327,97373.0,97372.0,0.30549211]
[1739579285072,0.00204327,97373.0,97372.0,0.63039211]
[1739579285446,0.00226714,97373.0,97372.0,0.63039211]
[1739579285623,0.00226714,97373.0,97372.0,0.62017165]
[1739579287253,0.00226714,97373.0,97372.0,0.63041875]
[1739579294118,0.00226714,97373.0,97372.0,0.7329224]
[1739579294520,0.00226714,97373.0,97372.0,0.9059224]
[1739579297200,0.00226714,97373.0,97372.0,1.4552224]
[1739579297610,0.00226714,97373.0,97372.0,1.4219753]
[1739579300474,0.00226714,97373.0,97372.0,0.88842365]
[1739579301519,0.00126714,97373.0,97372.0,0.88142365]
[1739579301717,0.00026714,97373.0,97372.0,0.87442365]
[1739579301946,0.00026714,97373.0,97372.0,0.87942365]
[1739579302098,0.00026714,97373.0,97372.0,0.88342365]
[1739579302400,0.00026714,97373.0,97372.0,0.87942365]
[1739579303019,0.23081314,97373.0,97372.0,0.00522365]
[1739579303202,0.23081314,97373.0,97372.0,0.00922365]
[1739579303730,0.23081314,97373.0,97372.0,0.00422365]
[1739579303925,0.23081314,97373.0,97372.0,0.00822365]
[1739579304336,0.23081314,97373.0,97372.0,0.00422365]
[1739579304517,0.23081314,97373.0,97372.0,0.00022365]
[1739579304748,0.23081314,97373.0,97372.0,0.00622365]
[1739579304962,0.48331679,97373.0,97372.0,0.00622365]
[1739579305959,0.48331679,97373.0,97372.0,0.00322365]
[1739579306189,0.48331679,97373.0,97372.0,0.00422365]
[1739579306703,0.48331679,97373.0,97372.0,0.00122365]
[1739579307365,0.48331679,97373.0,97372.0,0.00022365]
[1739579307752,0.48631679,97373.0,97372.0,0.00022365]
[1739579308372,0.48431679,97373.0,97372.0,0.00022365]
[1739579308536,0.48331679,97373.0,97372.0,0.00022365]
[1739579308738,0.48731679,97373.0,97372.0,0.00022365]
[1739579308948,0.49497059,97373.0,97372.0,0.00022365]
[1739579309178,0.49997059,97373.0,97372.0,0.00022365]
[1739579313157,0.34997059,97373.0,97372.0,0.00022365]
[1739579313373,0.27347059,97373.0,97372.0,0.00022365]
[1739579313791,0.17096694,97373.0,97372.0,0.00022365]
[1739579315636,0.16331314,97373.0,97372.0,0.00022365]
[1739579315843,0.00926714,97373.0,97372.0,0.00022365]
[1739579316274,0.00926714,97373.0,97372.0,0.15427165]
[1739579316452,0.00926714,97373.0,97372.0,0.00022365]
[1739579317013,0.00026714,97373.0,97372.0,0.00022365]
[1739579317510,0.00026714,97373.0,97372.0,0.00122365]
[1739579318807,0.15431314,97373.0,97372.0,0.00122365]
[1739579320195,0.00026714,97373.0,97372.0,0.00122365]
[1739579321167,0.15431314,97373.0,97372.0,0.00122365]
[1739579322530,0.38421679,97373.0,97372.0,0.00122365]
[1739579323331,0.39186488,97373.0,97372.0,0.00022365]
[1739579323538,0.39686488,97373.0,97372.0,0.00022365]
[1739579324129,0.41366479,97373.0,97372.0,0.00022365]
[1739579325786,0.28626479,97373.0,97372.0,0.00022365]
[1739579325997,0.18376114,97373.0,97372.0,0.00022365]
[1739579327899,0.16696123,97373.0,97372.0,0.00022365]
[1739579328989,0.26946488,97373.0,97372.0,0.00022365]
[1739579329604,0.34906488,97373.0,97372.0,0.00022365]
[1739579329808,0.01291523,97373.0,97372.0,0.15427165]
[1739579330012,0.01291523,97373.0,97372.0,0.23147165]
[1739579330695,0.00226714,97373.0,97372.0,0.23147165]
[1739579330844,0.00026714,97373.0,97372.0,0.23147165]
[1739579331044,0.00126714,97373.0,97372.0,0.23847165]
[1739579331516,0.00126714,97373.0,97372.0,0.3409753]